[Event "Titled Tuesday Blitz February 21 Late 2023"]
[White "Nygren, Kim"]
[Black "Vakhlamov, Igor L."]
[WhiteFideId "1706136"]
[BlackFideId "24126748"]
[WhiteElo "2183"]
[BlackElo "2413"]
[Result "0-1"]
[Round "02"]
[TimeControl "180+2"]
[Date "2023.02.21"]
[WhiteClock "0:00:16"]
[BlackClock "0:01:05"]

1. e4 {[%clk 0:03:00]}  c5 {[%clk 0:02:59]} 2. Nf3 {[%clk 0:02:59]}  e6 {[%clk 0:03:00]} 3. d4 {[%clk 0:02:59]}  cxd4 {[%clk 0:03:01]} 4. Nxd4 {[%clk 0:03:00]}  Nf6 {[%clk 0:03:02]} 5. Nc3 {[%clk 0:02:59]}  Nc6 {[%clk 0:03:02]} 6. Ndb5 {[%clk 0:02:59]}  Bc5 {[%clk 0:03:03]} 7. Nd6+ {[%clk 0:02:53]}  Ke7 {[%clk 0:03:02]} 8. Nxc8+ {[%clk 0:02:50]}  Rxc8 {[%clk 0:03:03]} 9. Bd3 {[%clk 0:02:47]}  Qc7 {[%clk 0:03:03]} 10. O-O {[%clk 0:02:45]}  a6 {[%clk 0:03:03]} 11. a3 {[%clk 0:02:36]}  h5 {[%clk 0:03:01]} 12. Ne2 {[%clk 0:02:21]}  Ne5 {[%clk 0:02:40]} 13. Bf4 {[%clk 0:02:12]}  d6 {[%clk 0:02:40]} 14. b4 {[%clk 0:02:09]}  Ba7 {[%clk 0:02:40]} 15. c4 {[%clk 0:02:02]}  Rhd8 {[%clk 0:01:47]} 16. Rc1 {[%clk 0:01:59]}  Qc6 {[%clk 0:01:33]} 17. Nc3 {[%clk 0:01:50]}  Nxd3 {[%clk 0:01:29]} 18. Qxd3 {[%clk 0:01:49]}  Kf8 {[%clk 0:01:21]} 19. Rfd1 {[%clk 0:01:36]}  Qxc4 {[%clk 0:01:20]} 20. Bxd6+ {[%clk 0:01:09]}  Kg8 {[%clk 0:01:17]} 21. Nd5 {[%clk 0:00:22]}  Qxd3 {[%clk 0:01:10]} 22. Ne7+ {[%clk 0:00:15]}  Kh7 {[%clk 0:01:09]} 23. Nxc8 {[%clk 0:00:16]}  Rxc8 {[%clk 0:01:05]} 0-1


[Site "https://www.chess.com"]

[Event "Titled Tuesday Blitz February 21 Late 2023"]
[White "Kobo, Ori"]
[Black "Drnovsek, Gal"]
[WhiteFideId "2812320"]
[BlackFideId "14607077"]
[WhiteElo "2559"]
[BlackElo "2397"]
[Result "1-0"]
[Round "02"]
[TimeControl "180+2"]
[Date "2023.02.21"]
[WhiteClock "0:02:08"]
[BlackClock "0:01:55"]

1. b3 {[%clk 0:03:00]}  e5 {[%clk 0:02:52]} 2. Bb2 {[%clk 0:03:00]}  Nc6 {[%clk 0:02:50]} 3. c4 {[%clk 0:03:01]}  Nf6 {[%clk 0:02:47]} 4. e3 {[%clk 0:03:01]}  d6 {[%clk 0:02:43]} 5. Nf3 {[%clk 0:03:00]}  Be7 {[%clk 0:02:40]} 6. d4 {[%clk 0:02:59]}  e4 {[%clk 0:02:40]} 7. Nfd2 {[%clk 0:02:59]}  Bf5 {[%clk 0:02:40]} 8. Nc3 {[%clk 0:02:57]}  O-O {[%clk 0:02:37]} 9. Be2 {[%clk 0:02:55]}  Re8 {[%clk 0:02:37]} 10. g4 {[%clk 0:02:54]}  Bg6 {[%clk 0:02:34]} 11. h4 {[%clk 0:02:54]}  h5 {[%clk 0:02:34]} 12. g5 {[%clk 0:02:42]}  Nd7 {[%clk 0:02:25]} 13. Bxh5 {[%clk 0:02:40]}  Bf8 {[%clk 0:02:21]} 14. Bxg6 {[%clk 0:02:37]}  fxg6 {[%clk 0:02:21]} 15. Ndxe4 {[%clk 0:02:33]}  d5 {[%clk 0:02:13]} 16. cxd5 {[%clk 0:02:31]}  Nb4 {[%clk 0:02:14]} 17. h5 {[%clk 0:02:23]}  Nxd5 {[%clk 0:02:00]} 18. hxg6 {[%clk 0:02:21]}  Bb4 {[%clk 0:01:56]} 19. Rh8+ {[%clk 0:02:06]}  Kxh8 {[%clk 0:01:55]} 20. Qh5+ {[%clk 0:02:06]}  Kg8 {[%clk 0:01:56]} 21. Qh7+ {[%clk 0:02:07]}  Kf8 {[%clk 0:01:56]} 22. Qh8+ {[%clk 0:02:08]}  Ke7 {[%clk 0:01:57]} 23. Qxg7+ {[%clk 0:02:08]}  Ke6 {[%clk 0:01:55]} 24. Qf7# {[%clk 0:02:08]} 1-0


[Site "https://www.chess.com"]

[Event "Titled Tuesday Blitz February 21 Late 2023"]
[White "Vasquez Schroeder, Rodrigo"]
[Black "Bilan, Danila"]
[WhiteFideId "3400042"]
[BlackFideId "24161918"]
[WhiteElo "2524"]
[BlackElo "2303"]
[Result "1-0"]
[Round "02"]
[TimeControl "180+2"]
[Date "2023.02.21"]
[WhiteClock "0:01:06"]
[BlackClock "0:00:03"]

1. d4 {[%clk 0:03:00]}  d5 {[%clk 0:02:59]} 2. c4 {[%clk 0:02:58]}  c6 {[%clk 0:02:59]} 3. Nc3 {[%clk 0:02:57]}  Nf6 {[%clk 0:02:59]} 4. e3 {[%clk 0:02:57]}  e6 {[%clk 0:02:54]} 5. Nf3 {[%clk 0:02:55]}  Nbd7 {[%clk 0:02:54]} 6. Qc2 {[%clk 0:02:54]}  Bd6 {[%clk 0:02:53]} 7. b3 {[%clk 0:02:53]}  Qe7 {[%clk 0:02:49]} 8. Be2 {[%clk 0:02:53]}  O-O {[%clk 0:02:43]} 9. O-O {[%clk 0:02:53]}  dxc4 {[%clk 0:02:40]} 10. bxc4 {[%clk 0:02:53]}  e5 {[%clk 0:02:40]} 11. Rb1 {[%clk 0:02:53]}  Re8 {[%clk 0:02:29]} 12. c5 {[%clk 0:02:40]}  Bc7 {[%clk 0:02:20]} 13. Bc4 {[%clk 0:02:35]}  Nf8 {[%clk 0:01:57]} 14. h3 {[%clk 0:02:31]}  Be6 {[%clk 0:01:16]} 15. Bxe6 {[%clk 0:02:22]}  Nxe6 {[%clk 0:00:57]} 16. dxe5 {[%clk 0:02:17]}  Nd7 {[%clk 0:00:53]} 17. Rxb7 {[%clk 0:02:15]}  Ndxc5 {[%clk 0:00:47]} 18. Ba3 {[%clk 0:02:08]}  Qd8 {[%clk 0:00:39]} 19. Rbb1 {[%clk 0:01:56]}  Qd3 {[%clk 0:00:38]} 20. Rfc1 {[%clk 0:01:48]}  Qxc2 {[%clk 0:00:34]} 21. Rxc2 {[%clk 0:01:48]}  Rab8 {[%clk 0:00:34]} 22. Rd1 {[%clk 0:01:41]}  h6 {[%clk 0:00:28]} 23. g4 {[%clk 0:01:30]}  Red8 {[%clk 0:00:25]} 24. Rcd2 {[%clk 0:01:29]}  Rxd2 {[%clk 0:00:20]} 25. Rxd2 {[%clk 0:01:29]}  Rb6 {[%clk 0:00:18]} 26. Ne2 {[%clk 0:01:22]}  Rb1+ {[%clk 0:00:09]} 27. Kg2 {[%clk 0:01:22]}  Ne4 {[%clk 0:00:07]} 28. Rc2 {[%clk 0:01:21]}  c5 {[%clk 0:00:06]} 29. Nf4 {[%clk 0:01:17]}  Nxf4+ {[%clk 0:00:05]} 30. exf4 {[%clk 0:01:18]}  Bb6 {[%clk 0:00:05]} 31. Bc1 {[%clk 0:01:07]}  f5 {[%clk 0:00:03]} 32. gxf5 {[%clk 0:01:06]} 1-0


[Site "https://www.chess.com"]

[Event "Titled Tuesday Blitz February 21 Late 2023"]
[White "Urazayev, Arystanbek"]
[Black "Remolar Gallen, Jose"]
[WhiteFideId "13709810"]
[BlackFideId "2215187"]
[WhiteElo "2460"]
[BlackElo "2285"]
[Result "1-0"]
[Round "02"]
[TimeControl "180+2"]
[Date "2023.02.21"]
[WhiteClock "0:00:48"]
[BlackClock "0:00:04"]

1. d4 {[%clk 0:03:00]}  Nf6 {[%clk 0:02:59]} 2. c4 {[%clk 0:03:00]}  g6 {[%clk 0:02:57]} 3. Nc3 {[%clk 0:03:01]}  Bg7 {[%clk 0:02:47]} 4. e4 {[%clk 0:03:01]}  d6 {[%clk 0:02:47]} 5. Be2 {[%clk 0:03:01]}  O-O {[%clk 0:02:45]} 6. Nf3 {[%clk 0:03:00]}  e5 {[%clk 0:02:44]} 7. O-O {[%clk 0:03:00]}  Nc6 {[%clk 0:02:44]} 8. d5 {[%clk 0:03:01]}  Ne7 {[%clk 0:02:45]} 9. b4 {[%clk 0:03:01]}  Nh5 {[%clk 0:02:45]} 10. Re1 {[%clk 0:03:00]}  h6 {[%clk 0:02:41]} 11. a4 {[%clk 0:02:54]}  Nf4 {[%clk 0:02:32]} 12. Bf1 {[%clk 0:02:54]}  g5 {[%clk 0:02:32]} 13. Ra3 {[%clk 0:02:51]}  Neg6 {[%clk 0:02:29]} 14. c5 {[%clk 0:02:43]}  a5 {[%clk 0:02:26]} 15. bxa5 {[%clk 0:02:33]}  dxc5 {[%clk 0:02:23]} 16. Nb5 {[%clk 0:02:31]}  c6 {[%clk 0:02:10]} 17. dxc6 {[%clk 0:02:28]}  bxc6 {[%clk 0:02:11]} 18. Nd6 {[%clk 0:02:21]}  Bg4 {[%clk 0:02:02]} 19. Nf5 {[%clk 0:02:17]}  Qxa5 {[%clk 0:01:15]} 20. Bd2 {[%clk 0:02:15]}  Qc7 {[%clk 0:01:10]} 21. h3 {[%clk 0:02:10]}  Bxf5 {[%clk 0:00:57]} 22. exf5 {[%clk 0:02:10]}  Ne7 {[%clk 0:00:57]} 23. Qc2 {[%clk 0:01:48]}  Ned5 {[%clk 0:00:49]} 24. g3 {[%clk 0:01:44]}  Nb4 {[%clk 0:00:49]} 25. Qxc5 {[%clk 0:01:39]}  Nfd5 {[%clk 0:00:47]} 26. Bxb4 {[%clk 0:01:37]}  Rfb8 {[%clk 0:00:44]} 27. Bd2 {[%clk 0:01:22]}  Bf8 {[%clk 0:00:41]} 28. Qc1 {[%clk 0:01:23]}  Bxa3 {[%clk 0:00:33]} 29. Qxa3 {[%clk 0:01:23]}  f6 {[%clk 0:00:24]} 30. Bc4 {[%clk 0:01:23]}  Kg7 {[%clk 0:00:23]} 31. Qc5 {[%clk 0:01:22]}  Qd7 {[%clk 0:00:13]} 32. a5 {[%clk 0:01:07]}  Rd8 {[%clk 0:00:08]} 33. g4 {[%clk 0:01:00]}  Ne7 {[%clk 0:00:06]} 34. Bc3 {[%clk 0:00:54]}  h5 {[%clk 0:00:05]} 35. Nxe5 {[%clk 0:00:54]}  Qc7 {[%clk 0:00:03]} 36. Nf3 {[%clk 0:00:48]}  Rd7 {[%clk 0:00:04]} 37. Nxg5 {[%clk 0:00:48]} 1-0


[Site "https://www.chess.com"]

[Event "Titled Tuesday Blitz February 21 Late 2023"]
[White "Krallis, Christos"]
[Black "Krzyzanowski, Marcin"]
[WhiteFideId "4298896"]
[BlackFideId "1132199"]
[WhiteElo "2344"]
[BlackElo "2512"]
[Result "1-0"]
[Round "02"]
[TimeControl "180+2"]
[Date "2023.02.21"]
[WhiteClock "0:00:05"]
[BlackClock "0:00:05"]

1. e4 {[%clk 0:03:00]}  c6 {[%clk 0:02:55]} 2. d4 {[%clk 0:02:59]}  d5 {[%clk 0:02:54]} 3. exd5 {[%clk 0:02:57]}  cxd5 {[%clk 0:02:55]} 4. Bd3 {[%clk 0:02:58]}  Nc6 {[%clk 0:02:53]} 5. c3 {[%clk 0:02:58]}  Qc7 {[%clk 0:02:53]} 6. Ne2 {[%clk 0:02:58]}  Bg4 {[%clk 0:02:53]} 7. O-O {[%clk 0:02:58]}  e6 {[%clk 0:02:47]} 8. Qe1 {[%clk 0:02:58]}  Nf6 {[%clk 0:02:36]} 9. f3 {[%clk 0:02:56]}  Bh5 {[%clk 0:02:36]} 10. Qh4 {[%clk 0:02:55]}  Rg8 {[%clk 0:02:35]} 11. g4 {[%clk 0:02:46]}  Bg6 {[%clk 0:02:35]} 12. Bxg6 {[%clk 0:02:46]}  hxg6 {[%clk 0:02:36]} 13. Bf4 {[%clk 0:02:46]}  Bd6 {[%clk 0:02:36]} 14. Qg3 {[%clk 0:02:46]}  Bxf4 {[%clk 0:02:34]} 15. Qxf4 {[%clk 0:02:46]}  Qb6 {[%clk 0:02:32]} 16. b3 {[%clk 0:02:07]}  O-O-O {[%clk 0:02:30]} 17. Nd2 {[%clk 0:02:03]}  e5 {[%clk 0:02:17]} 18. Qe3 {[%clk 0:02:00]}  Rge8 {[%clk 0:02:17]} 19. Qf2 {[%clk 0:01:57]}  exd4 {[%clk 0:02:09]} 20. Nxd4 {[%clk 0:01:57]}  Nxd4 {[%clk 0:02:04]} 21. Qxd4 {[%clk 0:01:56]}  Qxd4+ {[%clk 0:02:03]} 22. cxd4 {[%clk 0:01:56]}  Re3 {[%clk 0:02:04]} 23. Rac1+ {[%clk 0:01:09]}  Kd7 {[%clk 0:02:03]} 24. Rfd1 {[%clk 0:01:05]}  Rde8 {[%clk 0:01:58]} 25. Rc2 {[%clk 0:01:01]}  Nh7 {[%clk 0:01:50]} 26. Rdc1 {[%clk 0:00:59]}  Re1+ {[%clk 0:01:51]} 27. Rxe1 {[%clk 0:00:59]}  Rxe1+ {[%clk 0:01:51]} 28. Kf2 {[%clk 0:00:59]}  Rd1 {[%clk 0:01:51]} 29. Ke2 {[%clk 0:00:56]}  Ra1 {[%clk 0:01:47]} 30. Nf1 {[%clk 0:00:51]}  Ng5 {[%clk 0:01:45]} 31. Ne3 {[%clk 0:00:50]}  Ne6 {[%clk 0:01:46]} 32. Rd2 {[%clk 0:00:47]}  Kd6 {[%clk 0:01:43]} 33. Kf2 {[%clk 0:00:41]}  b5 {[%clk 0:01:39]} 34. h4 {[%clk 0:00:36]}  a5 {[%clk 0:01:37]} 35. Kg3 {[%clk 0:00:24]}  b4 {[%clk 0:01:31]} 36. f4 {[%clk 0:00:21]}  Rc1 {[%clk 0:01:25]} 37. f5 {[%clk 0:00:19]}  gxf5 {[%clk 0:01:24]} 38. Nxf5+ {[%clk 0:00:19]}  Kd7 {[%clk 0:01:24]} 39. h5 {[%clk 0:00:18]}  Rc3+ {[%clk 0:01:21]} 40. Kh4 {[%clk 0:00:16]}  g5+ {[%clk 0:01:21]} 41. hxg6 {[%clk 0:00:15]}  fxg6 {[%clk 0:01:22]} 42. Nh6 {[%clk 0:00:12]}  Rf3 {[%clk 0:01:17]} 43. g5 {[%clk 0:00:11]}  Rf4+ {[%clk 0:01:15]} 44. Ng4 {[%clk 0:00:11]}  Rxd4 {[%clk 0:01:12]} 45. Rxd4 {[%clk 0:00:11]}  Nxd4 {[%clk 0:01:13]} 46. Ne5+ {[%clk 0:00:11]}  Kd6 {[%clk 0:01:10]} 47. Nxg6 {[%clk 0:00:12]}  Ne6 {[%clk 0:01:01]} 48. Kg4 {[%clk 0:00:10]}  d4 {[%clk 0:01:00]} 49. Nh4 {[%clk 0:00:10]}  Ke5 {[%clk 0:00:58]} 50. Nf3+ {[%clk 0:00:09]}  Ke4 {[%clk 0:00:59]} 51. g6 {[%clk 0:00:09]}  d3 {[%clk 0:00:58]} 52. Nd2+ {[%clk 0:00:05]}  Ke5 {[%clk 0:00:53]} 53. Nc4+ {[%clk 0:00:05]}  Ke4 {[%clk 0:00:41]} 54. Nd2+ {[%clk 0:00:04]}  Ke5 {[%clk 0:00:17]} 55. Nc4+ {[%clk 0:00:04]}  Kf6 {[%clk 0:00:17]} 56. Kf3 {[%clk 0:00:04]}  Nc5 {[%clk 0:00:16]} 57. Ke3 {[%clk 0:00:03]}  Kxg6 {[%clk 0:00:16]} 58. Nxa5 {[%clk 0:00:04]}  Kf5 {[%clk 0:00:13]} 59. Nc6 {[%clk 0:00:04]}  Na6 {[%clk 0:00:06]} 60. Kxd3 {[%clk 0:00:04]}  Ke6 {[%clk 0:00:06]} 61. Kc4 {[%clk 0:00:05]}  Kd6 {[%clk 0:00:06]} 62. Nxb4 {[%clk 0:00:05]}  Nb8 {[%clk 0:00:07]} 63. Nd3 {[%clk 0:00:06]}  Nd7 {[%clk 0:00:07]} 64. b4 {[%clk 0:00:06]}  Kc6 {[%clk 0:00:08]} 65. a4 {[%clk 0:00:06]}  Nb6+ {[%clk 0:00:08]} 66. Kb3 {[%clk 0:00:06]}  Nd5 {[%clk 0:00:08]} 67. Nb2 {[%clk 0:00:06]}  Kb6 {[%clk 0:00:08]} 68. Nd1 {[%clk 0:00:07]}  Kc6 {[%clk 0:00:08]} 69. Nc3 {[%clk 0:00:07]}  Nf4 {[%clk 0:00:09]} 70. Kc4 {[%clk 0:00:07]}  Ng2 {[%clk 0:00:08]} 71. b5+ {[%clk 0:00:08]}  Kb6 {[%clk 0:00:09]} 72. Kb4 {[%clk 0:00:08]}  Ne3 {[%clk 0:00:09]} 73. a5+ {[%clk 0:00:09]}  Kb7 {[%clk 0:00:09]} 74. Kc5 {[%clk 0:00:10]}  Nc2 {[%clk 0:00:09]} 75. Nd5 {[%clk 0:00:08]}  Na1 {[%clk 0:00:09]} 76. a6+ {[%clk 0:00:07]}  Ka7 {[%clk 0:00:09]} 77. Kc4 {[%clk 0:00:04]}  Nc2 {[%clk 0:00:09]} 78. Nb4 {[%clk 0:00:04]}  Na3+ {[%clk 0:00:09]} 79. Kc5 {[%clk 0:00:04]}  Nb1 {[%clk 0:00:04]} 80. b6+ {[%clk 0:00:05]}  Ka8 {[%clk 0:00:05]} 81. b7+ {[%clk 0:00:04]}  Ka7 {[%clk 0:00:04]} 82. Nc6+ {[%clk 0:00:05]}  Kxa6 {[%clk 0:00:05]} 83. b8=Q {[%clk 0:00:05]} 1-0


[Site "https://www.chess.com"]

[Event "Titled Tuesday Blitz February 21 Late 2023"]
[White "Yuan, Qingyu"]
[Black "Berezin, Viktor"]
[WhiteFideId "8609772"]
[BlackFideId "14107872"]
[WhiteElo "2373"]
[BlackElo "2307"]
[Result "0-1"]
[Round "02"]
[TimeControl "180+2"]
[Date "2023.02.21"]
[WhiteClock "0:00:04"]
[BlackClock "0:00:11"]

1. e4 {[%clk 0:03:00]}  g6 {[%clk 0:02:59]} 2. d4 {[%clk 0:03:00]}  Bg7 {[%clk 0:03:00]} 3. Nc3 {[%clk 0:03:01]}  d6 {[%clk 0:03:01]} 4. f4 {[%clk 0:03:01]}  Nf6 {[%clk 0:03:01]} 5. Nf3 {[%clk 0:03:02]}  O-O {[%clk 0:03:01]} 6. Bd3 {[%clk 0:03:02]}  Na6 {[%clk 0:03:02]} 7. a3 {[%clk 0:02:55]}  c5 {[%clk 0:03:01]} 8. d5 {[%clk 0:02:49]}  Nc7 {[%clk 0:02:58]} 9. Qe2 {[%clk 0:02:48]}  a6 {[%clk 0:02:55]} 10. a4 {[%clk 0:02:48]}  Rb8 {[%clk 0:02:54]} 11. a5 {[%clk 0:02:39]}  Bg4 {[%clk 0:02:45]} 12. O-O {[%clk 0:02:39]}  Bxf3 {[%clk 0:02:45]} 13. Rxf3 {[%clk 0:02:39]}  b5 {[%clk 0:02:44]} 14. axb6 {[%clk 0:02:38]}  Rxb6 {[%clk 0:02:45]} 15. Bc4 {[%clk 0:02:26]}  Rb4 {[%clk 0:02:23]} 16. Ra4 {[%clk 0:01:43]}  Rxa4 {[%clk 0:02:22]} 17. Nxa4 {[%clk 0:01:43]}  e6 {[%clk 0:02:11]} 18. dxe6 {[%clk 0:01:40]}  Nxe6 {[%clk 0:02:11]} 19. Bxe6 {[%clk 0:01:22]}  fxe6 {[%clk 0:02:11]} 20. Nc3 {[%clk 0:01:15]}  d5 {[%clk 0:02:10]} 21. Qxa6 {[%clk 0:01:08]}  Qd7 {[%clk 0:01:59]} 22. e5 {[%clk 0:01:04]}  Ng4 {[%clk 0:01:24]} 23. Nb5 {[%clk 0:00:57]}  Rb8 {[%clk 0:01:00]} 24. Nd6 {[%clk 0:00:50]}  Qe7 {[%clk 0:01:00]} 25. h3 {[%clk 0:00:49]}  Nh6 {[%clk 0:01:00]} 26. Qc6 {[%clk 0:00:41]}  c4 {[%clk 0:00:46]} 27. Ra3 {[%clk 0:00:38]}  Nf5 {[%clk 0:00:42]} 28. Ra8 {[%clk 0:00:34]}  Rxa8 {[%clk 0:00:41]} 29. Qxa8+ {[%clk 0:00:35]}  Bf8 {[%clk 0:00:41]} 30. Nxf5 {[%clk 0:00:29]}  gxf5 {[%clk 0:00:41]} 31. Qc6 {[%clk 0:00:19]}  Kf7 {[%clk 0:00:40]} 32. Be3 {[%clk 0:00:19]}  Qb4 {[%clk 0:00:38]} 33. Qd7+ {[%clk 0:00:16]}  Be7 {[%clk 0:00:37]} 34. Kh2 {[%clk 0:00:17]}  Qa5 {[%clk 0:00:22]} 35. Bd4 {[%clk 0:00:12]}  Qb4 {[%clk 0:00:22]} 36. Be3 {[%clk 0:00:12]}  Qa5 {[%clk 0:00:22]} 37. c3 {[%clk 0:00:10]}  Qd8 {[%clk 0:00:16]} 38. Qb7 {[%clk 0:00:10]}  Kf8 {[%clk 0:00:16]} 39. Bb6 {[%clk 0:00:09]}  Qe8 {[%clk 0:00:15]} 40. Qa6 {[%clk 0:00:07]}  Qc6 {[%clk 0:00:15]} 41. Qa7 {[%clk 0:00:06]}  Qb5 {[%clk 0:00:11]} 42. Qa8+ {[%clk 0:00:05]}  Kf7 {[%clk 0:00:11]} 43. Bd4 {[%clk 0:00:06]}  Qxb2 {[%clk 0:00:11]} 44. Qh8 {[%clk 0:00:06]}  Bf8 {[%clk 0:00:09]} 45. Qxh7+ {[%clk 0:00:07]}  Bg7 {[%clk 0:00:10]} 46. Qh5+ {[%clk 0:00:07]}  Kf8 {[%clk 0:00:10]} 47. Qg6 {[%clk 0:00:07]}  Qd2 {[%clk 0:00:08]} 48. Qg5 {[%clk 0:00:03]}  Kf7 {[%clk 0:00:07]} 49. Qh5+ {[%clk 0:00:03]}  Kf8 {[%clk 0:00:08]} 50. Bc5+ {[%clk 0:00:04]}  Kg8 {[%clk 0:00:07]} 51. Qe8+ {[%clk 0:00:04]}  Kh7 {[%clk 0:00:08]} 52. Qh5+ {[%clk 0:00:05]}  Kg8 {[%clk 0:00:08]} 53. Qg5 {[%clk 0:00:05]}  Kh7 {[%clk 0:00:09]} 54. Be7 {[%clk 0:00:05]}  Bh6 {[%clk 0:00:09]} 55. Qh4 {[%clk 0:00:02]}  Qxf4+ {[%clk 0:00:08]} 56. Qxf4 {[%clk 0:00:03]}  Bxf4+ {[%clk 0:00:09]} 57. Kg1 {[%clk 0:00:03]}  Bxe5 {[%clk 0:00:10]} 58. Bb4 {[%clk 0:00:04]}  d4 {[%clk 0:00:10]} 59. cxd4 {[%clk 0:00:04]}  Bxd4+ {[%clk 0:00:11]} 60. Kf1 {[%clk 0:00:05]}  Kg6 {[%clk 0:00:11]} 61. Ke2 {[%clk 0:00:06]}  Kf6 {[%clk 0:00:12]} 62. Kf3 {[%clk 0:00:04]}  e5 {[%clk 0:00:12]} 63. g4 {[%clk 0:00:04]}  e4+ {[%clk 0:00:11]} 64. Kf4 {[%clk 0:00:04]}  Be5+ {[%clk 0:00:12]} 65. Ke3 {[%clk 0:00:05]}  Kg5 {[%clk 0:00:11]} 66. h4+ {[%clk 0:00:04]}  Kxg4 {[%clk 0:00:11]} 67. Bc3 {[%clk 0:00:04]}  Bxc3 {[%clk 0:00:11]} 0-1


[Site "https://www.chess.com"]

[Event "Titled Tuesday Blitz February 21 Late 2023"]
[White "Tatarinov, Dmitry"]
[Black "Martinez Reyes, Pedro Ramon"]
[WhiteFideId "24160067"]
[BlackFideId "3901807"]
[WhiteElo "2310"]
[BlackElo "2376"]
[Result "0-1"]
[Round "02"]
[TimeControl "180+2"]
[Date "2023.02.21"]
[WhiteClock "0:01:46"]
[BlackClock "0:02:21"]

1. d4 {[%clk 0:02:59]}  Nf6 {[%clk 0:02:57]} 2. c4 {[%clk 0:02:59]}  c5 {[%clk 0:02:57]} 3. d5 {[%clk 0:02:59]}  e5 {[%clk 0:02:57]} 4. Nc3 {[%clk 0:02:58]}  d6 {[%clk 0:02:57]} 5. e4 {[%clk 0:02:57]}  Be7 {[%clk 0:02:57]} 6. Nf3 {[%clk 0:02:56]}  Nbd7 {[%clk 0:02:57]} 7. Be2 {[%clk 0:02:56]}  Nf8 {[%clk 0:02:57]} 8. O-O {[%clk 0:02:55]}  Ng6 {[%clk 0:02:58]} 9. Ne1 {[%clk 0:02:56]}  a6 {[%clk 0:02:55]} 10. Nd3 {[%clk 0:02:56]}  h6 {[%clk 0:02:50]} 11. a4 {[%clk 0:02:55]}  Nh7 {[%clk 0:02:47]} 12. a5 {[%clk 0:02:41]}  Bd7 {[%clk 0:02:43]} 13. b4 {[%clk 0:02:41]}  cxb4 {[%clk 0:02:40]} 14. Nxb4 {[%clk 0:02:41]}  Bg5 {[%clk 0:02:39]} 15. Na4 {[%clk 0:02:33]}  Bxc1 {[%clk 0:02:36]} 16. Rxc1 {[%clk 0:02:34]}  Qxa5 {[%clk 0:02:35]} 17. c5 {[%clk 0:02:03]}  Bxa4 {[%clk 0:02:29]} 18. Qd2 {[%clk 0:01:57]}  dxc5 {[%clk 0:02:29]} 19. Rxc5 {[%clk 0:01:45]}  Qxc5 {[%clk 0:02:25]} 20. Rc1 {[%clk 0:01:46]}  Qd4 {[%clk 0:02:21]} 0-1


[Site "https://www.chess.com"]

[Event "Titled Tuesday Blitz February 21 Late 2023"]
[White "Florescu, Codrut-Constantin"]
[Black "Christiansen, Johan-Sebastian"]
[WhiteFideId "1202200"]
[BlackFideId "1512668"]
[WhiteElo "2259"]
[BlackElo "2579"]
[Result "0-1"]
[Round "02"]
[TimeControl "180+2"]
[Date "2023.02.21"]
[WhiteClock "0:00:49"]
[BlackClock "0:00:19"]

1. e4 {[%clk 0:03:00]}  e5 {[%clk 0:02:59]} 2. Nf3 {[%clk 0:03:00]}  Nc6 {[%clk 0:03:00]} 3. Bc4 {[%clk 0:03:01]}  Nf6 {[%clk 0:02:58]} 4. d3 {[%clk 0:03:01]}  Be7 {[%clk 0:02:54]} 5. O-O {[%clk 0:03:01]}  O-O {[%clk 0:02:55]} 6. Re1 {[%clk 0:02:59]}  d6 {[%clk 0:02:55]} 7. c3 {[%clk 0:02:59]}  Kh8 {[%clk 0:02:55]} 8. Nbd2 {[%clk 0:02:58]}  Ng8 {[%clk 0:02:55]} 9. d4 {[%clk 0:02:57]}  f5 {[%clk 0:02:56]} 10. dxe5 {[%clk 0:02:52]}  fxe4 {[%clk 0:02:56]} 11. Nxe4 {[%clk 0:02:51]}  Rxf3 {[%clk 0:02:55]} 12. Qxf3 {[%clk 0:02:49]}  d5 {[%clk 0:02:55]} 13. Ng5 {[%clk 0:02:40]}  Bxg5 {[%clk 0:02:54]} 14. Bxd5 {[%clk 0:02:38]}  Bxc1 {[%clk 0:02:50]} 15. Raxc1 {[%clk 0:02:37]}  Nge7 {[%clk 0:02:49]} 16. Bxc6 {[%clk 0:02:33]}  Nxc6 {[%clk 0:02:42]} 17. e6 {[%clk 0:02:31]}  Qe7 {[%clk 0:02:30]} 18. Qf7 {[%clk 0:02:29]}  g6 {[%clk 0:02:26]} 19. Qxe7 {[%clk 0:02:23]}  Nxe7 {[%clk 0:02:25]} 20. Rcd1 {[%clk 0:02:23]}  Kg7 {[%clk 0:02:21]} 21. Rd8 {[%clk 0:02:22]}  b6 {[%clk 0:02:13]} 22. f4 {[%clk 0:02:12]}  Bb7 {[%clk 0:01:59]} 23. Rd7 {[%clk 0:02:11]}  Kf6 {[%clk 0:01:47]} 24. Rxc7 {[%clk 0:02:11]}  Bd5 {[%clk 0:01:45]} 25. g4 {[%clk 0:01:56]}  Re8 {[%clk 0:01:45]} 26. Kf2 {[%clk 0:01:53]}  Bxe6 {[%clk 0:01:40]} 27. Kg3 {[%clk 0:01:53]}  a5 {[%clk 0:01:37]} 28. b3 {[%clk 0:01:49]}  h5 {[%clk 0:01:36]} 29. h3 {[%clk 0:01:48]}  hxg4 {[%clk 0:01:35]} 30. hxg4 {[%clk 0:01:48]}  Rd8 {[%clk 0:01:31]} 31. Rxe7 {[%clk 0:01:40]}  Rd3+ {[%clk 0:01:29]} 32. Kh4 {[%clk 0:01:41]}  g5+ {[%clk 0:01:24]} 33. fxg5+ {[%clk 0:01:38]}  Kxe7 {[%clk 0:01:24]} 34. g6 {[%clk 0:01:34]}  Kf6 {[%clk 0:01:07]} 35. g7 {[%clk 0:01:24]}  Bf7 {[%clk 0:01:03]} 36. c4 {[%clk 0:01:18]}  Kxg7 {[%clk 0:01:00]} 37. Re7 {[%clk 0:01:18]}  Kf6 {[%clk 0:00:44]} 38. Rb7 {[%clk 0:01:17]}  Rd6 {[%clk 0:00:44]} 39. Rc7 {[%clk 0:01:10]}  a4 {[%clk 0:00:37]} 40. c5 {[%clk 0:01:05]}  bxc5 {[%clk 0:00:36]} 41. Rxc5 {[%clk 0:01:06]}  Ra6 {[%clk 0:00:29]} 42. bxa4 {[%clk 0:01:03]}  Rxa4 {[%clk 0:00:30]} 43. Rf5+ {[%clk 0:01:03]}  Kg7 {[%clk 0:00:30]} 44. Rf2 {[%clk 0:01:03]}  Bxa2 {[%clk 0:00:29]} 45. Kg5 {[%clk 0:01:02]}  Be6 {[%clk 0:00:30]} 46. Rg2 {[%clk 0:01:02]}  Ra5+ {[%clk 0:00:27]} 47. Kh4 {[%clk 0:01:02]}  Kg6 {[%clk 0:00:27]} 48. Rg1 {[%clk 0:01:00]}  Ra2 {[%clk 0:00:27]} 49. Rg3 {[%clk 0:00:59]}  Rh2+ {[%clk 0:00:20]} 50. Rh3 {[%clk 0:00:59]}  Re2 {[%clk 0:00:20]} 51. Rc3 {[%clk 0:00:58]}  Re4 {[%clk 0:00:19]} 52. Rg3 {[%clk 0:00:58]}  Kf6 {[%clk 0:00:20]} 53. Rg1 {[%clk 0:00:57]}  Ke5 {[%clk 0:00:20]} 54. Rg2 {[%clk 0:00:57]}  Re1 {[%clk 0:00:20]} 55. Rg3 {[%clk 0:00:56]}  Kf4 {[%clk 0:00:20]} 56. Rh3 {[%clk 0:00:53]}  Bxg4 {[%clk 0:00:20]} 57. Rh2 {[%clk 0:00:49]}  Re5 {[%clk 0:00:19]} 58. Rf2+ {[%clk 0:00:49]}  Bf3 {[%clk 0:00:19]} 0-1


[Site "https://www.chess.com"]